bitfinex-derivatives/quotes_BTCF0:USTF0_20250809
["timestamp","ask_amount","ask_price","bid_price","bid_amount"]
[1754735340716,0.1968846,117860.0,117850.0,0.2885326]
[1754735341510,0.1968846,117860.0,117850.0,0.2036913]
[1754735341709,0.1968846,117860.0,117850.0,0.2036919]
[1754735343619,0.53930041,117860.0,117850.0,0.2036919]
[1754735345917,0.53930041,117860.0,117850.0,0.1323719]
[1754735346220,0.53930041,117860.0,117850.0,0.2036919]
[1754735347420,0.53930041,117860.0,117850.0,0.11885]
[1754735347617,0.53930041,117860.0,117850.0,0.2036919]
[1754735349724,0.53730041,117860.0,117850.0,0.2036919]
[1754735357623,0.89810041,117860.0,117850.0,0.04753]
[1754735357921,0.1912619,117850.0,117840.0,1.5361461]
[1754735358223,0.1912619,117850.0,117840.0,1.87856191]
[1754735358924,0.1534819,117850.0,117840.0,1.87856191]
[1754735359427,0.1912619,117850.0,117840.0,1.87956191]
[1754735359824,0.1912619,117850.0,117840.0,1.88056191]
[1754735360318,0.21033351,117850.0,117840.0,1.88056191]
[1754735361031,0.21033351,117850.0,117840.0,1.5381461]
[1754735361325,0.21033351,117850.0,117840.0,1.88056191]
[1754735362532,0.12996351,117850.0,117840.0,1.88056191]
[1754735362922,0.15109351,117850.0,117840.0,1.5381461]
[1754735363122,0.16629351,117850.0,117840.0,1.5381461]
[1754735363427,0.16629351,117850.0,117840.0,1.88056191]
[1754735363625,0.18887351,117850.0,117840.0,1.88056191]
[1754735367123,0.11981351,117850.0,117840.0,1.88056191]
[1754735367835,0.14094351,117850.0,117840.0,1.88056191]
[1754735368725,0.15614351,117850.0,117840.0,1.88056191]
[1754735369030,0.16629351,117850.0,117840.0,1.88056191]
[1754735369231,0.18887351,117850.0,117840.0,1.88056191]
[1754735369730,0.16629351,117850.0,117840.0,1.88056191]
[1754735369929,0.16629351,117850.0,117840.0,1.5381461]
[1754735370123,0.15109351,117850.0,117840.0,1.88056191]
[1754735370431,0.16629351,117850.0,117840.0,1.88056191]
[1754735371430,0.15109351,117850.0,117840.0,1.88056191]
[1754735371626,0.12996351,117850.0,117840.0,1.88056191]
[1754735372130,0.11981351,117850.0,117840.0,1.88056191]
[1754735374433,0.11981351,117850.0,117840.0,1.5381461]
[1754735374640,0.14094351,117850.0,117840.0,1.88056191]
[1754735375434,0.10391351,117850.0,117840.0,1.88056191]
[1754735377531,0.10391351,117850.0,117840.0,1.5381461]
[1754735378035,0.10391351,117850.0,117840.0,1.88056191]
[1754735378640,0.36067988,117850.0,117840.0,1.79491247]
[1754735380636,0.10391351,117850.0,117840.0,1.79491247]
[1754735380836,0.36067988,117850.0,117840.0,1.79491247]
[1754735381133,0.36067988,117850.0,117840.0,0.7412661]
[1754735381336,1.08690625,117850.0,117840.0,0.01174]
[1754735381530,0.46933988,117850.0,117840.0,0.12138]
[1754735381729,0.21257351,117850.0,117840.0,0.12138]
[1754735382140,0.46933988,117850.0,117840.0,0.20623]
[1754735382635,0.55497127,117850.0,117840.0,0.20623]
[1754735382839,0.21257351,117850.0,117840.0,0.20623]
[1754735383141,0.55497127,117850.0,117840.0,0.20623]
[1754735383738,0.55497127,117850.0,117840.0,1.00223]
[1754735383939,0.21257351,117850.0,117840.0,1.00223]
[1754735384140,0.55497127,117850.0,117840.0,1.00223]
[1754735385139,0.55497127,117850.0,117840.0,0.91738]
[1754735385743,0.55497127,117850.0,117840.0,0.12138]
[1754735386242,0.55497127,117850.0,117840.0,0.20623]
[1754735386744,0.21257351,117850.0,117840.0,0.12138]
[1754735386932,0.11949351,117850.0,117840.0,0.20623]
[1754735387137,0.0848346,117860.0,117850.0,0.2042228]
[1754735387337,0.0848346,117860.0,117850.0,1.70366056]
[1754735387544,0.0848346,117860.0,117850.0,1.3612628]
[1754735387845,0.0848346,117860.0,117850.0,1.70366056]
[1754735388346,0.0848346,117860.0,117850.0,0.82257776]
[1754735388542,0.53689236,117860.0,117850.0,1.27782]
[1754735388842,0.53689236,117860.0,117850.0,0.11938]
[1754735389339,0.53789236,117860.0,117850.0,0.11938]
[1754735392236,0.89869236,117860.0,117850.0,0.11938]
[1754735392844,0.91855077,117860.0,117850.0,0.11938]
[1754735393045,0.91855077,117860.0,117850.0,0.06943]
[1754735393340,0.1935028,117850.0,117840.0,0.91658]
[1754735393535,0.53590056,117850.0,117840.0,0.91658]
[1754735394643,0.53590056,117850.0,117840.0,0.91858]
[1754735396338,0.53590056,117850.0,117840.0,1.00343]
[1754735396945,0.53590056,117850.0,117840.0,0.91858]
[1754735398647,0.1935028,117850.0,117840.0,0.91858]
[1754735398844,0.53590056,117850.0,117840.0,0.91858]
[1754735399151,0.53590056,117850.0,117840.0,1.0034299]
[1754735399748,0.1935028,117850.0,117840.0,1.0034299]
[1754735399949,0.53590056,117850.0,117840.0,1.0034299]
[1754735400449,0.1935028,117850.0,117840.0,1.0034299]
[1754735401050,0.1935028,117850.0,117840.0,0.91858]
[1754735401251,0.53590056,117850.0,117840.0,0.91858]
[1754735401547,0.89670056,117850.0,117840.0,0.12138]
[1754735401748,0.89670056,117850.0,117840.0,0.002]
[1754735401960,1.69270056,117850.0,117840.0,0.002]
[1754735403150,1.69370056,117850.0,117840.0,0.001]
[1754735403654,1.3513028,117850.0,117840.0,0.001]
[1754735403842,1.69270056,117850.0,117840.0,0.001]
[1754735404047,1.69470056,117850.0,117840.0,0.001]
[1754735404245,0.5563028,117850.0,117840.0,0.11938]
[1754735404549,0.89970056,117850.0,117840.0,0.2042299]
[1754735404753,0.1965028,117850.0,117840.0,0.54662766]
[1754735404948,0.1965028,117850.0,117840.0,0.90742766]
[1754735405254,0.0878428,117850.0,117840.0,0.90742766]
[1754735405448,0.0878428,117850.0,117840.0,0.54662766]
[1754735405656,0.0878428,117850.0,117840.0,0.90742766]
[1754735406056,0.0878428,117850.0,117840.0,0.5650299]
[1754735406351,0.0878428,117850.0,117840.0,0.2042299]
[1754735406556,0.1034228,117850.0,117840.0,0.2042299]
[1754735406756,0.1928128,117850.0,117840.0,0.91558]
[1754735407059,0.53621056,117850.0,117840.0,1.0004299]
[1754735407750,0.53721056,117850.0,117840.0,1.0004299]
[1754735408356,0.1948128,117850.0,117840.0,1.0004299]
[1754735408557,0.1342928,117850.0,117840.0,1.0004299]
[1754735408755,0.1034228,117850.0,117840.0,0.2042299]
[1754735409253,0.1014228,117850.0,117840.0,0.5650299]
[1754735409451,0.1024228,117850.0,117840.0,0.2042299]
[1754735409659,0.1024228,117850.0,117840.0,0.5650299]
[1754735409850,0.0868428,117850.0,117840.0,0.90742766]
[1754735410459,0.0868428,117850.0,117840.0,0.5650299]
[1754735410654,0.53629056,117850.0,117840.0,0.48018]
[1754735410854,0.53629056,117850.0,117840.0,0.11938]
[1754735411153,0.1938928,117850.0,117840.0,0.11938]
[1754735411357,0.53629056,117850.0,117840.0,0.11938]
[1754735411757,0.89709056,117850.0,117840.0,0.11938]
[1754735412454,0.1918999,117840.0,117830.0,0.99352572]
[1754735412653,0.53429766,117840.0,117830.0,0.14966572]
[1754735412863,0.53429766,117840.0,117830.0,0.13390572]
[1754735413049,0.53429766,117840.0,117830.0,0.10277]
[1754735413248,0.53429766,117840.0,117830.0,0.11814]
[1754735413559,0.89509766,117840.0,117830.0,0.11914]
[1754735413858,1.69233766,117840.0,117830.0,0.001]
[1754735414961,1.69233766,117840.0,117830.0,0.002]
[1754735414962,2.03473542,117840.0,117830.0,0.002]
[1754735415661,1.69233766,117840.0,117830.0,0.002]
[1754735415957,2.03473542,117840.0,117830.0,0.002]
[1754735416162,2.20446342,117840.0,117830.0,0.002]
[1754735416368,2.30067769,117840.0,117830.0,0.002]
[1754735417367,0.0848716,117810.0,117800.0,0.49469658]
[1754735417558,0.1919216,117810.0,117800.0,0.58098658]
[1754735417869,0.1919216,117810.0,117800.0,0.22943465]
[1754735418065,0.1460416,117810.0,117800.0,0.57183241]
[1754735418255,0.1314016,117810.0,117800.0,0.93263241]
[1754735418455,0.1314016,117810.0,117800.0,0.57183241]
[1754735418656,0.1314016,117810.0,117800.0,0.93263241]
[1754735418862,0.0848716,117810.0,117800.0,0.93263241]
[1754735419457,0.0848716,117810.0,117800.0,0.93463241]
[1754735419765,0.0848716,117810.0,117800.0,0.59223465]
[1754735419963,0.1314016,117810.0,117800.0,0.59223465]
[1754735420164,0.1919216,117810.0,117800.0,1.38927465]
[1754735420465,0.1919216,117810.0,117800.0,0.65994266]
[1754735421254,0.53431936,117810.0,117800.0,0.65994266]
[1754735421563,0.53431936,117810.0,117800.0,0.66294266]
[1754735421768,0.1919216,117810.0,117800.0,0.66294266]
[1754735422068,0.53431936,117810.0,117800.0,0.66294266]
[1754735422264,0.53431936,117810.0,117800.0,0.30214266]
[1754735422461,0.1919216,117810.0,117800.0,0.30214266]
[1754735422667,0.1919216,117810.0,117800.0,0.66294266]
[1754735423463,0.1005316,117810.0,117800.0,0.66294266]
[1754735423673,0.0848716,117810.0,117800.0,1.00534042]
[1754735423967,0.1005316,117810.0,117800.0,0.66294266]
[1754735424271,0.1919216,117810.0,117800.0,0.30214266]
[1754735424569,0.53431936,117810.0,117800.0,0.30214266]
[1754735424972,0.1919216,117810.0,117800.0,0.30214266]
[1754735425671,0.1460416,117810.0,117800.0,0.66294266]
[1754735425971,0.1314016,117810.0,117800.0,1.00534042]
[1754735427968,0.1314016,117810.0,117800.0,0.66294266]
[1754735428770,0.1460416,117810.0,117800.0,0.66294266]
[1754735430072,0.1698416,117810.0,117800.0,0.66294266]
[1754735430369,0.51223936,117810.0,117800.0,0.64577478]
[1754735430571,0.1698416,117810.0,117800.0,0.64577478]
[1754735430966,0.0848716,117810.0,117800.0,0.98817254]
[1754735431161,0.0848716,117810.0,117800.0,0.64577478]
[1754735431667,0.0848716,117810.0,117800.0,0.98817254]
[1754735433275,0.0848716,117810.0,117800.0,0.64577478]
[1754735433666,0.0848716,117810.0,117800.0,0.98817254]
[1754735434474,0.0848716,117810.0,117800.0,0.64577478]
[1754735434676,0.0848716,117810.0,117800.0,0.98817254]
[1754735436572,0.59700316,117820.0,117800.0,1.24279814]
[1754735436768,0.68187476,117820.0,117810.0,0.2038716]
[1754735437075,0.355957,117820.0,117810.0,0.2038716]
[1754735437267,0.79205476,117820.0,117810.0,0.2038716]
[1754735437775,0.1722316,117810.0,117800.0,0.89926038]
[1754735437974,0.1950516,117810.0,117800.0,0.90026038]
[1754735438475,0.1950516,117810.0,117800.0,0.81538168]
[1754735438668,0.1950516,117810.0,117800.0,0.81238168]
[1754735438864,0.1950516,117810.0,117800.0,0.81338168]
[1754735439070,0.53744936,117810.0,117800.0,0.81538168]
[1754735439264,0.53744936,117810.0,117800.0,0.36970298]
[1754735439464,0.1950516,117810.0,117800.0,0.37070298]
[1754735439671,0.53744936,117810.0,117800.0,0.37070298]
[1754735441080,0.53744936,117810.0,117800.0,0.23710878]
[1754735441281,0.53744936,117810.0,117800.0,0.20095608]
[1754735441782,0.1950516,117810.0,117800.0,0.20095608]
[1754735442078,0.53744936,117810.0,117800.0,0.20095608]
[1754735442775,0.89824936,117810.0,117800.0,0.20095608]
[1754735442975,0.53744936,117810.0,117800.0,0.08195608]
[1754735443180,0.89824936,117810.0,117800.0,0.08195608]
[1754735443677,0.53744936,117810.0,117800.0,0.20095608]
[1754735443871,0.53744936,117810.0,117800.0,0.19995608]
[1754735444074,0.53744936,117810.0,117800.0,0.28483488]
[1754735444274,0.1950516,117810.0,117800.0,0.28483488]
[1754735444476,0.1114016,117810.0,117800.0,0.62723264]
[1754735444678,0.1013516,117810.0,117800.0,0.62623264]
[1754735444980,0.1489616,117810.0,117800.0,0.62323264]
[1754735445179,0.1742316,117810.0,117800.0,0.62323264]
[1754735445482,0.1742316,117810.0,117800.0,0.28083488]
[1754735446185,0.1752316,117810.0,117800.0,0.28083488]
[1754735446670,0.1980516,117810.0,117800.0,0.28083488]
[1754735447276,0.54044936,117810.0,117800.0,0.28083488]
[1754735448179,0.0878716,117810.0,117800.0,0.28083488]
[1754735448385,0.0878716,117810.0,117800.0,0.62323264]
[1754735448787,0.0878716,117810.0,117800.0,0.28083488]
[1754735449087,0.0878716,117810.0,117800.0,0.62323264]
[1754735452179,0.0878716,117810.0,117800.0,0.28083488]
[1754735454187,0.52501936,117810.0,117800.0,0.26640488]
[1754735454384,0.54044936,117810.0,117800.0,0.28083488]
[1754735454687,0.54044936,117810.0,117800.0,0.19595608]
[1754735455389,0.54044936,117810.0,117800.0,0.18152608]
[1754735455683,0.90124936,117810.0,117800.0,0.14723608]
[1754735455988,0.90124936,117810.0,117800.0,0.07695608]
[1754735456180,0.0848787,117800.0,117790.0,1.4845535]
[1754735456381,0.53745646,117800.0,117790.0,1.4845535]
[1754735456993,0.53745646,117800.0,117790.0,0.3736535]
[1754735457288,0.53745646,117800.0,117790.0,0.3746535]
[1754735457786,0.53745646,117800.0,117790.0,0.45352002]
[1754735458186,0.0848787,117800.0,117790.0,1.15671778]
[1754735458882,0.0848787,117800.0,117790.0,0.81432002]
[1754735459083,0.51463646,117800.0,117790.0,0.45352002]
[1754735459385,0.1950587,117800.0,117790.0,0.81432002]
[1754735459988,0.1013587,117800.0,117790.0,0.81432002]
[1754735460183,0.0848787,117800.0,117790.0,1.15671778]
[1754735460991,0.35811367,117810.0,117800.0,0.2038788]
[1754735461191,0.37459367,117810.0,117800.0,1.0023588]
[1754735461385,0.41999367,117810.0,117800.0,1.0023588]
[1754735461580,0.78787143,117810.0,117800.0,1.0023588]
[1754735461786,0.81069143,117810.0,117800.0,1.0023588]
[1754735462492,0.81169143,117810.0,117800.0,1.0023588]
[1754735462894,0.81269143,117810.0,117800.0,1.0023588]
[1754735463498,0.47029367,117810.0,117800.0,0.2038788]
[1754735463794,0.81269143,117810.0,117800.0,0.22117913]
[1754735464192,0.81269143,117810.0,117800.0,0.58197913]
[1754735464901,0.47029367,117810.0,117800.0,0.58197913]
[1754735465088,0.46929367,117810.0,117800.0,0.58397913]
[1754735465485,0.27423487,117810.0,117800.0,0.92637689]
[1754735465687,0.001,117810.0,117800.0,0.92637689]
[1754735465886,0.001,117810.0,117800.0,0.92437689]
[1754735466092,0.3394795,117820.0,117810.0,0.1421415]
[1754735466293,0.3394795,117820.0,117810.0,1.70726926]
[1754735467407,0.3394795,117820.0,117810.0,1.3648715]
[1754735467607,0.3394795,117820.0,117810.0,1.70726926]
[1754735467796,0.3394795,117820.0,117810.0,1.3648715]
[1754735468197,0.3394795,117820.0,117810.0,1.70726926]
[1754735468398,0.3394795,117820.0,117810.0,1.3648715]
[1754735468600,0.3394795,117820.0,117810.0,1.70726926]
[1754735468803,0.3394795,117820.0,117810.0,1.70826926]
[1754735469507,0.3394795,117820.0,117810.0,1.3658715]
[1754735470003,0.254608,117820.0,117810.0,1.3658715]
[1754735471411,0.254608,117820.0,117810.0,1.70826926]
[1754735472313,0.254608,117820.0,117810.0,1.3658715]
[1754735472609,0.254608,117820.0,117810.0,1.70826926]
[1754735472811,0.275738,117820.0,117810.0,1.3658715]
[1754735473109,0.330378,117820.0,117810.0,1.3658715]
[1754735473298,0.340168,117820.0,117810.0,0.5656715]
[1754735473498,1.06490576,117820.0,117810.0,0.12]
[1754735473706,1.06490576,117820.0,117810.0,0.0333]
[1754735473912,1.86462576,117820.0,117810.0,0.001]
[1754735474206,0.1009088,117800.0,117790.0,0.07886652]
[1754735474407,0.1322461,117790.0,117780.0,1.52266202]
[1754735474712,0.53438386,117790.0,117780.0,1.53193953]
[1754735475097,0.53438386,117790.0,117780.0,1.51395349]
[1754735475303,0.53438386,117790.0,117780.0,1.58213478]
[1754735475601,0.1009161,117790.0,117780.0,1.92453254]
[1754735475901,0.1009161,117790.0,117780.0,1.58413478]
[1754735476106,0.1220461,117790.0,117780.0,2.00229858]
[1754735477110,0.1220461,117790.0,117780.0,2.00329858]
[1754735477412,0.1364561,117790.0,117780.0,1.66090082]
[1754735477609,0.1364561,117790.0,117780.0,2.00329858]
[1754735477812,0.1606561,117790.0,117780.0,2.00329858]
[1754735478006,0.1606561,117790.0,117780.0,1.66090082]
[1754735478207,0.1704461,117790.0,117780.0,1.66090082]
[1754735478406,0.1704461,117790.0,117780.0,1.58513478]
[1754735478907,0.1704461,117790.0,117780.0,1.66090082]
[1754735480513,0.53438386,117790.0,117780.0,1.4433089]
[1754735481817,0.53438386,117790.0,117780.0,1.3584188]
[1754735482108,0.53438386,117790.0,117780.0,0.1963388]
[1754735483006,0.53438386,117790.0,117780.0,0.1953388]
[1754735484618,0.53438386,117790.0,117780.0,0.1809988]
[1754735484821,0.89518386,117790.0,117780.0,0.1809988]
[1754735486127,0.1107205,117770.0,117760.0,0.40656]
[1754735486420,0.1920005,117770.0,117760.0,1.0012277]
[1754735486620,0.53439826,117770.0,117760.0,1.0012277]
[1754735487017,0.53439826,117770.0,117760.0,1.3620277]
[1754735487217,0.1920005,117770.0,117760.0,1.3620277]
[1754735487417,0.1920005,117770.0,117760.0,1.37331982]
[1754735487619,0.1920005,117770.0,117760.0,1.37631982]
[1754735488113,0.1322605,117770.0,117760.0,0.01429212]
[1754735488318,0.53439826,117770.0,117760.0,1.01499972]
[1754735489119,0.53439826,117770.0,117760.0,1.08406877]
[1754735489518,0.1920005,117770.0,117760.0,1.08406877]
[1754735489923,0.1920005,117770.0,117760.0,1.44486877]
[1754735490122,0.0849005,117770.0,117760.0,1.42646653]
[1754735490317,0.0849005,117770.0,117760.0,1.78726653]
[1754735490718,0.0849005,117770.0,117760.0,1.44486877]
[1754735491022,0.53439826,117770.0,117760.0,1.44450877]
[1754735491220,0.1920005,117770.0,117760.0,1.44450877]
[1754735491416,0.1009305,117770.0,117760.0,1.78690653]
[1754735492519,0.0849005,117770.0,117760.0,1.78690653]
[1754735493123,0.35862557,117780.0,117770.0,0.1481004]
[1754735493423,0.35862557,117780.0,117770.0,0.90597816]
[1754735494019,0.27372517,117780.0,117770.0,0.90597816]
[1754735494226,0.27372517,117780.0,117770.0,0.90697816]
[1754735495025,0.27372517,117780.0,117770.0,0.5645804]
[1754735495227,0.01903237,117780.0,117770.0,0.90797816]
[1754735496117,0.10392557,117780.0,117770.0,0.90797816]
[1754735497921,0.01903237,117780.0,117770.0,0.90797816]
[1754735499326,0.2546687,117790.0,117780.0,0.203823]
[1754735499522,0.1697761,117790.0,117780.0,1.70566076]
[1754735499719,0.62733386,117790.0,117780.0,1.363263]
[1754735500215,0.2849361,117790.0,117780.0,1.363263]
[1754735500921,0.62733386,117790.0,117780.0,1.363263]
[1754735501518,0.62733386,117790.0,117780.0,1.002463]
[1754735502723,0.62733386,117790.0,117780.0,1.363263]
[1754735503129,0.62733386,117790.0,117780.0,1.002463]
[1754735504023,0.2849361,117790.0,117780.0,1.002463]
[1754735504222,0.62733386,117790.0,117780.0,1.363263]
[1754735504723,0.2849361,117790.0,117780.0,1.363263]
[1754735505028,0.1697761,117790.0,117780.0,1.70566076]
[1754735505731,0.1697761,117790.0,117780.0,1.363263]
[1754735511832,0.1697761,117790.0,117780.0,1.3632632]
[1754735512733,0.51217386,117790.0,117780.0,1.3632632]
[1754735513127,0.1697761,117790.0,117780.0,1.3632632]
[1754735515235,0.51217386,117790.0,117780.0,1.3632632]
[1754735516024,0.51217386,117790.0,117780.0,1.0024632]
[1754735516025,0.55962386,117790.0,117780.0,1.0024632]
[1754735516233,0.57322386,117790.0,117780.0,1.0024632]
[1754735516432,0.59596386,117790.0,117780.0,1.0024632]
[1754735516632,0.60565386,117790.0,117780.0,1.0024632]
[1754735516935,0.62733386,117790.0,117780.0,1.0024632]
[1754735517342,0.2849361,117790.0,117780.0,1.0024632]
[1754735517636,0.62733386,117790.0,117780.0,1.0024632]
[1754735519738,0.2849361,117790.0,117780.0,1.0024632]
[1754735519938,0.62733386,117790.0,117780.0,1.0024632]
[1754735520140,0.2849361,117790.0,117780.0,1.0024632]
[1754735520339,0.62733386,117790.0,117780.0,1.0024632]
[1754735521741,0.59099386,117790.0,117780.0,0.91757]
[1754735522040,0.62733386,117790.0,117780.0,0.11893]
[1754735522436,0.62733386,117790.0,117780.0,0.2038231]
[1754735523039,0.76492856,117790.0,117780.0,0.00948]
[1754735523232,0.2546682,117790.0,117780.0,0.82212776]
[1754735523437,0.2546682,117790.0,117780.0,0.90702096]
[1754735523941,0.27848481,117800.0,117780.0,1.16168946]
[1754735524137,0.36337021,117800.0,117790.0,1.0008959]
[1754735524333,0.71545797,117800.0,117790.0,0.2038159]
[1754735524534,0.084886,117790.0,117780.0,1.22988]
[1754735524840,0.21910246,117780.0,117770.0,1.27677]
[1754735525038,0.21910246,117780.0,117770.0,1.3616704]
[1754735525243,0.21910246,117780.0,117770.0,0.47973]
[1754735525244,0.56150022,117780.0,117770.0,0.47973]
[1754735526238,0.56150022,117780.0,117770.0,0.40769]
[1754735526442,0.56150022,117780.0,117770.0,0.04689]
[1754735526843,1.35854022,117780.0,117770.0,0.04689]
[1754735527048,0.2061704,117770.0,117760.0,0.66091817]
[1754735527245,0.54856816,117770.0,117760.0,0.66091817]
[1754735528348,0.54856816,117770.0,117760.0,0.57601517]
[1754735528646,0.54856816,117770.0,117760.0,0.57701517]
[1754735529646,0.54856816,117770.0,117760.0,0.66192277]
[1754735530045,0.54856816,117770.0,117760.0,0.57701517]
[1754735530242,0.54856816,117770.0,117760.0,0.57801517]
[1754735531142,0.2061704,117770.0,117760.0,0.57801517]
[1754735531342,0.54856816,117770.0,117760.0,0.66292277]
[1754735531545,0.2061704,117770.0,117760.0,0.57801517]
[1754735531849,0.54856816,117770.0,117760.0,0.56113117]
[1754735532347,0.54856816,117770.0,117760.0,0.64603877]
[1754735535743,0.2061704,117770.0,117760.0,0.64603877]
[1754735535945,0.54856816,117770.0,117760.0,0.64603877]
[1754735536136,0.54856816,117770.0,117760.0,0.98843653]
[1754735536137,0.0849004,117770.0,117760.0,0.98843653]
[1754735536341,0.1339804,117770.0,117760.0,0.98843653]
[1754735536542,0.2061704,117770.0,117760.0,0.64603877]
[1754735537635,0.54856816,117770.0,117760.0,0.64603877]
[1754735537840,0.2061704,117770.0,117760.0,0.64603877]
[1754735538850,0.54856816,117770.0,117760.0,0.64603877]
[1754735539052,0.54856816,117770.0,117760.0,0.56113117]
[1754735540452,0.2061704,117770.0,117760.0,0.56113117]
[1754735540648,0.54856816,117770.0,117760.0,0.56113117]
[1754735540853,0.54856816,117770.0,117760.0,0.48909117]
[1754735541155,0.54856816,117770.0,117760.0,0.51332117]
[1754735541353,0.54856816,117770.0,117760.0,0.55860117]
[1754735542458,0.2061704,117770.0,117760.0,0.55860117]
[1754735542952,0.54856816,117770.0,117760.0,0.55860117]
[1754735543347,0.54856816,117770.0,117760.0,0.55760117]
[1754735543550,0.54856816,117770.0,117760.0,0.55660117]
[1754735545757,1.34560816,117770.0,117760.0,0.55660117]
[1754735546946,0.47570816,117770.0,117760.0,0.64150857]
[1754735547151,0.44288816,117770.0,117760.0,0.64150857]
[1754735547562,0.47637816,117770.0,117760.0,0.64150857]
[1754735548057,0.49090816,117770.0,117760.0,0.64150857]
[1754735548258,0.51574816,117770.0,117760.0,0.64150857]
[1754735549763,0.52565816,117770.0,117760.0,0.64150857]
[1754735549963,0.54856816,117770.0,117760.0,0.64150857]
[1754735550660,0.54856816,117770.0,117760.0,0.28070857]
[1754735551063,0.2061704,117770.0,117760.0,0.19580117]
[1754735551263,0.54856816,117770.0,117760.0,0.19580117]
[1754735551959,0.54856816,117770.0,117760.0,0.14006117]
[1754735552264,0.54856816,117770.0,117760.0,0.07836117]
[1754735552469,0.54856816,117770.0,117760.0,0.02423]
[1754735552662,0.54856816,117770.0,117760.0,0.11744]
[1754735553064,0.1234074,117760.0,117750.0,0.46447]
[1754735553364,1.70656466,117760.0,117750.0,0.47824]
[1754735553574,1.70656466,117760.0,117750.0,0.40873]
[1754735553763,1.70656466,117760.0,117750.0,0.00923874]
[1754735553964,1.70656466,117760.0,117740.0,0.53258926]
[1754735554160,0.54858246,117750.0,117740.0,0.66543906]
[1754735554362,0.54858246,117750.0,117740.0,0.2872803]
[1754735554763,0.54858246,117750.0,117740.0,0.6480803]
[1754735554965,0.0849147,117750.0,117740.0,0.99047806]
[1754735555169,0.0849147,117750.0,117740.0,0.99147806]
[1754735555473,0.0849147,117750.0,117740.0,1.0692441]
[1754735556665,0.0849147,117750.0,117740.0,1.14640988]
[1754735557864,0.0849147,117750.0,117740.0,1.14540988]
[1754735558168,0.0849147,117750.0,117740.0,1.14740988]
[1754735558469,0.0849147,117750.0,117740.0,0.80501212]
[1754735558669,0.0849147,117750.0,117740.0,1.14740988]
[1754735559170,0.0849147,117750.0,117740.0,0.80501212]
[1754735559359,0.0849147,117750.0,117740.0,1.14740988]
[1754735561865,0.0849147,117750.0,117740.0,0.80501212]
[1754735562071,0.54694246,117750.0,117740.0,0.80501212]
[1754735562273,0.54694246,117750.0,117740.0,0.72924608]
[1754735564476,0.2045447,117750.0,117740.0,0.72924608]
[1754735564674,0.54694246,117750.0,117740.0,0.72924608]
[1754735565876,0.2045447,117750.0,117740.0,0.72924608]
[1754735566275,0.2045447,117750.0,117740.0,1.07164384]
[1754735566475,0.1663147,117750.0,117740.0,1.07164384]
[1754735567074,0.1010747,117750.0,117740.0,1.07164384]
[1754735567376,0.0849147,117750.0,117740.0,1.07164384]
[1754735568576,0.54694246,117750.0,117740.0,1.44116558]
[1754735569378,0.2045447,117750.0,117740.0,1.44116558]
[1754735571880,0.2045447,117750.0,117740.0,1.78356334]
[1754735572579,0.1812947,117750.0,117740.0,1.78356334]
[1754735574368,0.1663147,117750.0,117740.0,1.78356334]
[1754735574682,0.0849147,117750.0,117740.0,1.78356334]
[1754735576484,0.0849147,117750.0,117740.0,1.76769334]
[1754735576681,0.27336654,117760.0,117750.0,0.1826648]
[1754735576885,0.28952654,117760.0,117750.0,0.91084256]
[1754735577184,0.33699654,117760.0,117750.0,0.91084256]
[1754735577381,0.32201654,117760.0,117750.0,0.5684448]
[1754735577586,0.32201654,117760.0,117750.0,0.91084256]
[1754735577983,0.32201654,117760.0,117750.0,0.91284256]
[1754735578288,0.33699654,117760.0,117750.0,1.70956256]
[1754735578688,0.36974654,117760.0,117750.0,1.63569256]
[1754735578876,0.41281447,117760.0,117750.0,1.3671648]
[1754735579283,0.41281447,117760.0,117750.0,1.70956256]
[1754735579783,0.41281447,117760.0,117750.0,1.3671648]
[1754735579989,0.41281447,117760.0,117750.0,1.3507148]
[1754735580481,0.41281447,117760.0,117750.0,1.3671648]
[1754735580883,0.41281447,117760.0,117750.0,1.0063648]
[1754735581389,0.41281447,117760.0,117750.0,1.3671648]
[1754735581785,0.41281447,117760.0,117750.0,1.0063648]
[1754735581992,0.41281447,117760.0,117750.0,1.3671648]
[1754735582292,0.41281447,117760.0,117750.0,1.0063648]
[1754735582592,0.39299654,117760.0,117750.0,1.0063648]
[1754735584488,0.39299654,117760.0,117750.0,1.3671648]
[1754735585090,0.39299654,117760.0,117750.0,1.0063648]
[1754735585290,0.39299654,117760.0,117750.0,1.3671648]
[1754735590301,0.39343647,117760.0,117750.0,1.3671648]
[1754735593404,0.73583423,117760.0,117750.0,1.3671648]
[1754735593904,0.71676256,117760.0,117750.0,1.3671648]
[1754735594203,0.73583586,117760.0,117750.0,1.3671648]
[1754735596207,0.3934381,117760.0,117750.0,1.3671648]
[1754735596507,0.3701881,117760.0,117750.0,1.3671648]
[1754735596809,0.3552081,117760.0,117750.0,1.3671648]
[1754735598001,0.4457044,117770.0,117750.0,1.70956256]
[1754735598198,0.0849044,117770.0,117760.0,0.90700546]
[1754735602096,0.0849005,117770.0,117760.0,1.58902302]
[1754735602303,0.0849005,117770.0,117760.0,1.24662526]
[1754735602602,0.1697967,117780.0,117770.0,0.2038005]
[1754735602903,0.1697967,117780.0,117770.0,1.70307826]
[1754735603096,0.1697967,117780.0,117770.0,1.3606805]
[1754735603408,0.1697967,117780.0,117770.0,1.70307826]
[1754735604308,0.1697967,117780.0,117770.0,1.3606805]
[1754735604508,0.1697967,117780.0,117770.0,1.70307826]
[1754735606906,0.1697967,117780.0,117770.0,1.3606805]
[1754735607097,0.1697967,117780.0,117770.0,1.70307826]
[1754735607296,0.1697967,117780.0,117770.0,1.3606805]
[1754735607506,0.1697967,117780.0,117770.0,1.70307826]
[1754735610704,0.1697967,117780.0,117770.0,1.3606805]
[1754735610908,0.1697967,117780.0,117770.0,1.70307826]
[1754735613208,0.1697967,117780.0,117770.0,1.3606805]
[1754735613508,0.1697967,117780.0,117770.0,1.70307826]
[1754735615009,0.0049,117790.0,117780.0,0.08792]
[1754735615215,0.0049,117790.0,117780.0,0.92399286]
[1754735616205,0.0059,117790.0,117780.0,0.92399286]
[1754735616906,0.0049,117790.0,117780.0,0.92399286]
[1754735620218,0.18849473,117800.0,117780.0,1.09377506]
[1754735620421,0.18849473,117800.0,117790.0,1.65790406]
[1754735621617,0.18949473,117800.0,117790.0,1.65790406]
[1754735621819,0.19049473,117800.0,117790.0,1.65790406]
[1754735622721,0.02072663,117800.0,117790.0,1.65790406]
[1754735625719,0.0047,117810.0,117800.0,0.06174]
[1754735625921,0.35858408,117820.0,117810.0,0.0848719]
[1754735626118,0.39859408,117820.0,117810.0,1.70466966]
[1754735626313,0.43192408,117820.0,117810.0,1.70466966]
[1754735626519,0.47789408,117820.0,117810.0,1.70466966]
[1754735627021,0.39302238,117820.0,117810.0,1.70466966]
[1754735627424,0.39302238,117820.0,117810.0,1.3622719]
[1754735628221,0.39302238,117820.0,117810.0,1.0014719]
[1754735628424,0.39302238,117820.0,117810.0,0.5667919]
[1754735628723,0.39302238,117820.0,117810.0,0.27518792]